[Event "*** Titled Tuesday Blitz"]
[Site "Chess.com"]
[Date "2020.10.27"]
[Round "3"]
[White "doons21"]
[Black "MF1966Idrisov"]
[Result "1-0"]
[WhiteElo "2555"]
[BlackElo "2336"]
[TimeControl "180+1"]
[EndTime "10:29:47 PDT"]
[Termination "doons21 won on time"]

1. e4 {[%clk 0:03:00.9]} 1... c6 {[%clk 0:02:59.8]} 2. d4 {[%clk 0:02:56.4]}
2... d5 {[%clk 0:02:59.7]} 3. f3 {[%clk 0:02:57.3]} 3... g6 {[%clk 0:02:58.5]}
4. Nc3 {[%clk 0:02:56.9]} 4... Bg7 {[%clk 0:02:57.5]} 5. e5 {[%clk 0:02:57.2]}
5... h5 {[%clk 0:02:56]} 6. f4 {[%clk 0:02:48.6]} 6... Nh6 {[%clk 0:02:53.9]} 7.
Nf3 {[%clk 0:02:46.6]} 7... Bg4 {[%clk 0:02:52.7]} 8. h3 {[%clk 0:02:46.1]} 8...
Bxf3 {[%clk 0:02:52.9]} 9. Qxf3 {[%clk 0:02:47]} 9... e6 {[%clk 0:02:53.2]} 10.
Be3 {[%clk 0:02:41.6]} 10... Nf5 {[%clk 0:02:51.1]} 11. Bf2 {[%clk 0:02:41.3]}
11... h4 {[%clk 0:02:51.4]} 12. O-O-O {[%clk 0:02:40.7]} 12... Nd7 {[%clk
0:02:49]} 13. Bd3 {[%clk 0:02:37.6]} 13... Bf8 {[%clk 0:02:46.7]} 14. Ne2 {[%clk
0:02:30.7]} 14... Qa5 {[%clk 0:02:44.4]} 15. Kb1 {[%clk 0:02:30.6]} 15... c5
{[%clk 0:02:43.7]} 16. Bxf5 {[%clk 0:02:06.7]} 16... gxf5 {[%clk 0:02:42.6]} 17.
g4 {[%clk 0:02:07.1]} 17... hxg3 {[%clk 0:02:38.1]} 18. Nxg3 {[%clk 0:02:06.9]}
18... O-O-O {[%clk 0:02:27.1]} 19. Ne2 {[%clk 0:01:55.8]} 19... Kb8 {[%clk
0:02:22.4]} 20. h4 {[%clk 0:01:45]} 20... Rc8 {[%clk 0:02:20.1]} 21. h5 {[%clk
0:01:45]} 21... cxd4 {[%clk 0:02:14.6]} 22. Bxd4 {[%clk 0:01:44.6]} 22... Bc5
{[%clk 0:02:09.7]} 23. c3 {[%clk 0:01:41.1]} 23... Bxd4 {[%clk 0:02:07.9]} 24.
cxd4 {[%clk 0:01:42]} 24... Nb6 {[%clk 0:02:01.9]} 25. b3 {[%clk 0:01:42.1]}
25... Qb5 {[%clk 0:02:01]} 26. Qd3 {[%clk 0:01:39]} 26... Qb4 {[%clk 0:01:54]}
27. Ka1 {[%clk 0:01:26.7]} 27... Rh7 {[%clk 0:01:48.6]} 28. Rh3 {[%clk 0:01:19]}
28... a5 {[%clk 0:01:44.7]} 29. Qd2 {[%clk 0:01:18.1]} 29... Qb5 {[%clk
0:01:43.3]} 30. Nc3 {[%clk 0:01:17.1]} 30... Qb4 {[%clk 0:01:42]} 31. Nb1 {[%clk
0:01:16.6]} 31... Qb5 {[%clk 0:01:34.2]} 32. Rc1 {[%clk 0:01:15.3]} 32... Rch8
{[%clk 0:01:31.6]} 33. Rc5 {[%clk 0:01:15]} 33... Qb4 {[%clk 0:01:27.2]} 34.
Rxa5 {[%clk 0:00:59.9]} 34... Qxd2 {[%clk 0:01:24.8]} 35. Nxd2 {[%clk
0:01:00.8]} 35... Rxh5 {[%clk 0:01:24.7]} 36. Rxh5 {[%clk 0:01:01.7]} 36... Rxh5
{[%clk 0:01:24.1]} 37. Nf3 {[%clk 0:01:02.6]} 37... Nd7 {[%clk 0:01:05]} 38. Ng5
{[%clk 0:00:56.3]} 38... Rh4 {[%clk 0:01:03.5]} 39. Nxf7 {[%clk 0:00:53.3]}
39... Rxf4 {[%clk 0:01:02]} 40. Ra4 {[%clk 0:00:53.1]} 40... Rf2 {[%clk
0:00:59.7]} 41. Kb1 {[%clk 0:00:43.6]} 41... f4 {[%clk 0:00:59.8]} 42. Kc1
{[%clk 0:00:44.1]} 42... f3 {[%clk 0:00:59.1]} 43. Kd1 {[%clk 0:00:44.4]} 43...
Rh2 {[%clk 0:00:46.4]} 44. Ke1 {[%clk 0:00:44.6]} 44... Re2+ {[%clk 0:00:45]}
45. Kf1 {[%clk 0:00:43]} 45... Rd2 {[%clk 0:00:45.1]} 46. Ng5 {[%clk 0:00:42.9]}
46... Nf8 {[%clk 0:00:31.9]} 47. Nxf3 {[%clk 0:00:41.4]} 47... Rb2 {[%clk
0:00:32]} 48. Ng5 {[%clk 0:00:37.9]} 48... Rc2 {[%clk 0:00:30.3]} 49. Ke1 {[%clk
0:00:35.4]} 49... Rg2 {[%clk 0:00:30]} 50. Nf7 {[%clk 0:00:35.5]} 50... Kc7
{[%clk 0:00:27.9]} 51. Ra8 {[%clk 0:00:33.8]} 51... Ng6 {[%clk 0:00:27.6]} 52.
Nd6 {[%clk 0:00:32.5]} 52... Nf4 {[%clk 0:00:25.6]} 53. Rc8+ {[%clk 0:00:32.4]}
53... Kd7 {[%clk 0:00:24.6]} 54. Rb8 {[%clk 0:00:30.2]} 54... Nd3+ {[%clk
0:00:20.9]} 55. Kf1 {[%clk 0:00:30]} 55... Rf2+ {[%clk 0:00:20.3]} 56. Kg1
{[%clk 0:00:30.3]} 56... Rxa2 {[%clk 0:00:20.3]} 57. Rxb7+ {[%clk 0:00:30.7]}
57... Kd8 {[%clk 0:00:19.7]} 58. Nf7+ {[%clk 0:00:28.4]} 58... Kc8 {[%clk
0:00:19.2]} 59. Nd6+ {[%clk 0:00:29.3]} 59... Kd8 {[%clk 0:00:19.1]} 60. Nf7+
{[%clk 0:00:27.1]} 60... Kc8 {[%clk 0:00:19.1]} 61. Re7 {[%clk 0:00:27.6]} 61...
Ra3 {[%clk 0:00:17.5]} 62. Rxe6 {[%clk 0:00:25.5]} 62... Ra1+ {[%clk 0:00:17.6]}
63. Kh2 {[%clk 0:00:25]} 63... Ra2+ {[%clk 0:00:16.1]} 64. Kg3 {[%clk
0:00:25.1]} 64... Ra3 {[%clk 0:00:15.5]} 65. Rc6+ {[%clk 0:00:24.8]} 65... Kd7
{[%clk 0:00:15.1]} 66. Rc3 {[%clk 0:00:24.9]} 66... Ne1 {[%clk 0:00:11.3]} 67.
Ng5 {[%clk 0:00:23.7]} 67... Ra2 {[%clk 0:00:09.8]} 68. Nf3 {[%clk 0:00:20.2]}
68... Nxf3 {[%clk 0:00:06.3]} 69. Kxf3 {[%clk 0:00:19.4]} 69... Ra1 {[%clk
0:00:05.1]} 70. Rc5 {[%clk 0:00:16.1]} 70... Ke6 {[%clk 0:00:02.8]} 71. Rc6+
{[%clk 0:00:16.5]} 71... Kf5 {[%clk 0:00:03]} 72. Rf6+ {[%clk 0:00:17.1]} 72...
Kg5 {[%clk 0:00:02.3]} 73. Rd6 {[%clk 0:00:18]} 73... Ra3 {[%clk 0:00:01.8]} 74.
Rxd5 {[%clk 0:00:17.9]} 74... Kf5 {[%clk 0:00:01.8]} 75. Rb5 {[%clk 0:00:15.9]}
1-0

[Event "*** Titled Tuesday Blitz"]
[Site "Chess.com"]
[Date "2020.10.27"]
[Round "3"]
[White "ENajer77"]
[Black "FontVella8"]
[Result "1-0"]
[WhiteElo "2688"]
[BlackElo "2491"]
[TimeControl "180+1"]
[EndTime "10:29:51 PDT"]
[Termination "ENajer77 won by resignation"]

1. e4 {[%clk 0:03:00.9]} 1... e5 {[%clk 0:03:00.1]} 2. Nf3 {[%clk 0:03:00.3]}
2... Nc6 {[%clk 0:03:00.6]} 3. Bb5 {[%clk 0:03:00.3]} 3... g6 {[%clk 0:03:00.9]}
4. c3 {[%clk 0:02:56.6]} 4... Bg7 {[%clk 0:03:00.2]} 5. d4 {[%clk 0:02:53]} 5...
exd4 {[%clk 0:03:01.1]} 6. cxd4 {[%clk 0:02:52.9]} 6... Nge7 {[%clk 0:03:00.8]}
7. d5 {[%clk 0:02:51.6]} 7... a6 {[%clk 0:03:00.9]} 8. Be2 {[%clk 0:02:46.4]}
8... Nb8 {[%clk 0:02:58.4]} 9. d6 {[%clk 0:02:39.3]} 9... cxd6 {[%clk
0:02:58.2]} 10. Qxd6 {[%clk 0:02:36.1]} 10... Nbc6 {[%clk 0:02:57.1]} 11. O-O
{[%clk 0:02:34.3]} 11... O-O {[%clk 0:02:57.2]} 12. Nc3 {[%clk 0:02:34.2]} 12...
b5 {[%clk 0:02:34.9]} 13. Rd1 {[%clk 0:02:33.8]} 13... Na5 {[%clk 0:02:26.4]}
14. Bg5 {[%clk 0:02:31.6]} 14... f6 {[%clk 0:02:25.7]} 15. Be3 {[%clk
0:02:10.1]} 15... Nb7 {[%clk 0:02:25.1]} 16. Qg3 {[%clk 0:02:05.7]} 16... d6
{[%clk 0:02:13.3]} 17. Rac1 {[%clk 0:01:51.7]} 17... Be6 {[%clk 0:02:08.9]} 18.
Nd4 {[%clk 0:01:49.8]} 18... Bf7 {[%clk 0:02:06.8]} 19. Bg4 {[%clk 0:01:42.2]}
19... b4 {[%clk 0:01:53.3]} 20. Ne6 {[%clk 0:01:37.6]} 20... Bxe6 {[%clk
0:01:50.1]} 21. Bxe6+ {[%clk 0:01:37.4]} 21... Kh8 {[%clk 0:01:50.7]} 22. Nd5
{[%clk 0:00:46.2]} 22... f5 {[%clk 0:01:49.8]} 23. Bg5 {[%clk 0:00:43.2]} 23...
Re8 {[%clk 0:01:23.1]} 24. Qh4 {[%clk 0:00:30]} 24... Nxd5 {[%clk 0:01:16.2]}
25. Bxd8 {[%clk 0:00:27.8]} 25... Rxe6 {[%clk 0:01:16.5]} 26. exd5 {[%clk
0:00:15.3]} 26... Re4 {[%clk 0:01:16.7]} 27. Qg3 {[%clk 0:00:10.5]} 27... Rxd8
{[%clk 0:01:16.3]} 28. Re1 {[%clk 0:00:09.7]} 28... Nc5 {[%clk 0:01:13.9]} 29.
Rxe4 {[%clk 0:00:08.9]} 29... Nxe4 {[%clk 0:01:14.5]} 30. Qd3 {[%clk 0:00:05.7]}
30... Bxb2 {[%clk 0:01:09.7]} 31. Rc7 {[%clk 0:00:05.4]} 31... Nc5 {[%clk
0:01:03.8]} 32. Qh3 {[%clk 0:00:05.1]} 32... Bg7 {[%clk 0:01:02.3]} 33. Qe3
{[%clk 0:00:03.5]} 33... Ne4 {[%clk 0:00:25.6]} 34. Qa7 {[%clk 0:00:03]} 34...
Rg8 {[%clk 0:00:24.4]} 35. g3 {[%clk 0:00:03.5]} 35... Nc3 {[%clk 0:00:22.5]}
36. Kg2 {[%clk 0:00:03.6]} 36... h6 {[%clk 0:00:17.4]} 37. Qxa6 {[%clk
0:00:03.4]} 37... Nxd5 {[%clk 0:00:17.2]} 38. Rd7 {[%clk 0:00:02.2]} 38... Nf6
{[%clk 0:00:07.3]} 39. Rxd6 {[%clk 0:00:02.5]} 39... Rf8 {[%clk 0:00:07.7]} 40.
Re6 {[%clk 0:00:02.5]} 40... g5 {[%clk 0:00:06.6]} 41. Qc4 {[%clk 0:00:02.9]}
41... Ne4 {[%clk 0:00:06.5]} 42. Re7 {[%clk 0:00:02.4]} 42... Nc3 {[%clk
0:00:04.9]} 43. Qe6 {[%clk 0:00:01.9]} 43... Kh7 {[%clk 0:00:04.5]} 44. Qd7
{[%clk 0:00:01.8]} 44... Rg8 {[%clk 0:00:04.5]} 45. Re8 {[%clk 0:00:02.4]} 45...
Rxe8 {[%clk 0:00:04.4]} 46. Qxe8 {[%clk 0:00:02.4]} 46... Nxa2 {[%clk
0:00:05.3]} 47. Qf7 {[%clk 0:00:02.7]} 47... Nc3 {[%clk 0:00:04.9]} 48. Qxf5+
{[%clk 0:00:03.2]} 48... Kg8 {[%clk 0:00:05.8]} 49. Qc8+ {[%clk 0:00:03.4]}
49... Kf7 {[%clk 0:00:05.9]} 50. Qc4+ {[%clk 0:00:04.1]} 50... Kg6 {[%clk
0:00:05.6]} 51. Qxb4 {[%clk 0:00:04.6]} 51... Kh5 {[%clk 0:00:05.9]} 52. Qc4
{[%clk 0:00:05.3]} 52... Kg6 {[%clk 0:00:06.1]} 53. Qd3+ {[%clk 0:00:06.2]}
53... Kf6 {[%clk 0:00:06.3]} 54. Qa6+ {[%clk 0:00:06.5]} 54... Kf7 {[%clk
0:00:05.9]} 55. Qb7+ {[%clk 0:00:07.4]} 55... Kg6 {[%clk 0:00:06.3]} 56. h4
{[%clk 0:00:07.2]} 56... gxh4 {[%clk 0:00:06.3]} 57. gxh4 {[%clk 0:00:07.9]}
57... h5 {[%clk 0:00:06.9]} 58. Qf3 {[%clk 0:00:08]} 58... Bf6 {[%clk 0:00:07]}
59. Qd3+ {[%clk 0:00:08.8]} 59... Kg7 {[%clk 0:00:06.7]} 60. Qf5 {[%clk
0:00:08.2]} 60... Ne2 {[%clk 0:00:04.9]} 61. Qe4 {[%clk 0:00:07.5]} 61... Nc3
{[%clk 0:00:04.5]} 62. Qf3 {[%clk 0:00:07.2]} 62... Kg6 {[%clk 0:00:03.8]} 63.
Qd3+ {[%clk 0:00:07.6]} 63... Kg7 {[%clk 0:00:03.7]} 64. Kh3 {[%clk 0:00:08.1]}
64... Kf7 {[%clk 0:00:03.3]} 65. Qh7+ {[%clk 0:00:07.7]} 65... Ke6 {[%clk
0:00:04]} 66. Qxh5 {[%clk 0:00:08.2]} 66... Nd5 {[%clk 0:00:04.9]} 67. Qg4+
{[%clk 0:00:08.6]} 67... Ke5 {[%clk 0:00:05.4]} 68. Qh5+ {[%clk 0:00:08]} 68...
Ke6 {[%clk 0:00:05.3]} 69. Qf3 {[%clk 0:00:08.4]} 69... Ke5 {[%clk 0:00:05.2]}
70. Kg4 {[%clk 0:00:07.9]} 70... Be7 {[%clk 0:00:03.7]} 71. Qf5+ {[%clk
0:00:07]} 71... Kd6 {[%clk 0:00:04.3]} 72. h5 {[%clk 0:00:07.7]} 72... Nf6+
{[%clk 0:00:04.6]} 73. Kf3 {[%clk 0:00:07.9]} 73... Nd5 {[%clk 0:00:04.4]} 74.
h6 {[%clk 0:00:07.7]} 74... Bf6 {[%clk 0:00:05.3]} 75. h7 {[%clk 0:00:07.3]}
75... Bg7 {[%clk 0:00:03.9]} 76. Qg6+ {[%clk 0:00:07.4]} 1-0

[Event "*** Titled Tuesday Blitz"]
[Site "Chess.com"]
[Date "2020.10.27"]
[Round "3"]
[White "davidkalashian"]
[Black "JozefKneht"]
[Result "0-1"]
[WhiteElo "2577"]
[BlackElo "2400"]
[TimeControl "180+1"]
[EndTime "10:29:51 PDT"]
[Termination "JozefKneht won by checkmate"]

1. e4 {[%clk 0:03:00.9]} 1... e5 {[%clk 0:02:58.8]} 2. Nf3 {[%clk 0:03:00.3]}
2... Nc6 {[%clk 0:02:58.6]} 3. d4 {[%clk 0:03:00]} 3... exd4 {[%clk 0:02:57.6]}
4. Nxd4 {[%clk 0:03:00.9]} 4... Bc5 {[%clk 0:02:54.1]} 5. Nxc6 {[%clk
0:03:01.2]} 5... Qf6 {[%clk 0:02:53.5]} 6. Qf3 {[%clk 0:03:01.7]} 6... dxc6
{[%clk 0:02:53.7]} 7. Nc3 {[%clk 0:03:00.5]} 7... Be6 {[%clk 0:02:52.8]} 8. Be3
{[%clk 0:02:59.9]} 8... Bb4 {[%clk 0:02:34.1]} 9. Qxf6 {[%clk 0:02:36.1]} 9...
Nxf6 {[%clk 0:02:32.3]} 10. f3 {[%clk 0:02:37]} 10... Bxc3+ {[%clk 0:02:22.1]}
11. bxc3 {[%clk 0:02:35.4]} 11... b6 {[%clk 0:02:19.3]} 12. c4 {[%clk
0:02:20.6]} 12... c5 {[%clk 0:02:18.1]} 13. O-O-O {[%clk 0:02:15.3]} 13... Rd8
{[%clk 0:02:00]} 14. Be2 {[%clk 0:02:12.2]} 14... Ke7 {[%clk 0:01:56.7]} 15. Kb2
{[%clk 0:02:01.5]} 15... Rd7 {[%clk 0:01:54]} 16. Rxd7+ {[%clk 0:01:49.6]} 16...
Nxd7 {[%clk 0:01:51.1]} 17. Rd1 {[%clk 0:01:49.9]} 17... Ne5 {[%clk 0:01:49.1]}
18. Kc3 {[%clk 0:01:48.8]} 18... f6 {[%clk 0:01:47.2]} 19. h3 {[%clk 0:01:43.3]}
19... Nf7 {[%clk 0:01:40.8]} 20. f4 {[%clk 0:01:39.3]} 20... Rd8 {[%clk
0:01:38.6]} 21. Rxd8 {[%clk 0:01:36.4]} 21... Kxd8 {[%clk 0:01:32.9]} 22. g4
{[%clk 0:01:34.5]} 22... g5 {[%clk 0:01:28.8]} 23. f5 {[%clk 0:01:29.6]} 23...
Bd7 {[%clk 0:01:27.6]} 24. Bf2 {[%clk 0:01:28.6]} 24... Bc6 {[%clk 0:01:20.9]}
25. Kd3 {[%clk 0:01:02.1]} 25... Ne5+ {[%clk 0:01:18]} 26. Ke3 {[%clk
0:01:02.2]} 26... Ke7 {[%clk 0:01:07.9]} 27. Bg3 {[%clk 0:00:59]} 27... Kd6
{[%clk 0:01:07.7]} 28. Bf1 {[%clk 0:00:58.4]} 28... Ba4 {[%clk 0:01:05.6]} 29.
Kd2 {[%clk 0:00:55.3]} 29... a6 {[%clk 0:01:05.9]} 30. Kc3 {[%clk 0:00:53.2]}
30... b5 {[%clk 0:01:04]} 31. cxb5 {[%clk 0:00:48.6]} 31... axb5 {[%clk
0:01:01.8]} 32. a3 {[%clk 0:00:46.5]} 32... Kc6 {[%clk 0:00:49.1]} 33. Bxe5
{[%clk 0:00:44.9]} 33... fxe5 {[%clk 0:00:48.3]} 34. Bd3 {[%clk 0:00:42.5]}
34... Kd6 {[%clk 0:00:48.7]} 35. Be2 {[%clk 0:00:36.1]} 35... h6 {[%clk
0:00:44.2]} 36. Kb2 {[%clk 0:00:32.4]} 36... b4 {[%clk 0:00:39.3]} 37. c3 {[%clk
0:00:27.5]} 37... Bc6 {[%clk 0:00:29.7]} 38. Bd3 {[%clk 0:00:24.1]} 38... c4
{[%clk 0:00:28.7]} 39. Bxc4 {[%clk 0:00:14.4]} 39... bxa3+ {[%clk 0:00:28.7]}
40. Kxa3 {[%clk 0:00:15.3]} 40... Bxe4 {[%clk 0:00:27.7]} 41. Bf1 {[%clk
0:00:16.2]} 41... Bf3 {[%clk 0:00:26.4]} 42. Kb2 {[%clk 0:00:13.7]} 42... e4
{[%clk 0:00:23.2]} 43. Kc2 {[%clk 0:00:14.1]} 43... Ke5 {[%clk 0:00:23.7]} 44.
Kd2 {[%clk 0:00:14.1]} 44... h5 {[%clk 0:00:19.6]} 45. gxh5 {[%clk 0:00:09.4]}
45... Bxh5 {[%clk 0:00:17.2]} 46. Ke3 {[%clk 0:00:08.3]} 46... Bf3 {[%clk
0:00:15.6]} 47. Bc4 {[%clk 0:00:04.2]} 47... Bg2 {[%clk 0:00:12.7]} 48. Bb5
{[%clk 0:00:01.6]} 48... Bxh3 {[%clk 0:00:11.8]} 49. f6 {[%clk 0:00:02]} 49...
Kxf6 {[%clk 0:00:09.9]} 50. Kxe4 {[%clk 0:00:02.9]} 50... Be6 {[%clk 0:00:08.6]}
51. Ke3 {[%clk 0:00:02.9]} 51... Ke5 {[%clk 0:00:07.5]} 52. Bf1 {[%clk
0:00:03.8]} 52... g4 {[%clk 0:00:06.4]} 53. Be2 {[%clk 0:00:03.6]} 53... Bf5
{[%clk 0:00:05.5]} 54. Bf1 {[%clk 0:00:03.7]} 54... Be4 {[%clk 0:00:05.3]} 55.
Be2 {[%clk 0:00:01.8]} 55... g3 {[%clk 0:00:05.5]} 56. Bd1 {[%clk 0:00:01.9]}
56... c5 {[%clk 0:00:04.7]} 57. Be2 {[%clk 0:00:02.8]} 57... g2 {[%clk
0:00:04.3]} 58. Kf2 {[%clk 0:00:03.1]} 58... Kf4 {[%clk 0:00:05.2]} 59. Kg1
{[%clk 0:00:02.9]} 59... Ke3 {[%clk 0:00:05]} 60. Bc4 {[%clk 0:00:03]} 60... Kd2
{[%clk 0:00:05]} 61. Bb5 {[%clk 0:00:02.5]} 61... Kxc3 {[%clk 0:00:05.3]} 62.
Ba6 {[%clk 0:00:02.5]} 62... c4 {[%clk 0:00:05.6]} 63. Kf2 {[%clk 0:00:02.9]}
63... Kb3 {[%clk 0:00:05.6]} 64. Bxc4+ {[%clk 0:00:01.8]} 64... Kxc4 {[%clk
0:00:05.2]} 65. Kg1 {[%clk 0:00:02.7]} 65... Kd3 {[%clk 0:00:05.6]} 66. Kf2
{[%clk 0:00:03.6]} 66... Kd2 {[%clk 0:00:06]} 67. Kg1 {[%clk 0:00:03.9]} 67...
Ke2 {[%clk 0:00:06.5]} 68. Kh2 {[%clk 0:00:04.1]} 68... Kf2 {[%clk 0:00:06.3]}
69. Kh3 {[%clk 0:00:05]} 69... g1=Q {[%clk 0:00:06.3]} 70. Kh4 {[%clk
0:00:05.7]} 70... Qg6 {[%clk 0:00:04.9]} 71. Kh3 {[%clk 0:00:05.6]} 71... Qg3#
{[%clk 0:00:04.9]} 0-1

[Event "*** Titled Tuesday Blitz"]
[Site "Chess.com"]
[Date "2020.10.27"]
[Round "3"]
[White "MikaelyanArman"]
[Black "renehp"]
[Result "1-0"]
[WhiteElo "2809"]
[BlackElo "2456"]
[TimeControl "180+1"]
[EndTime "10:29:53 PDT"]
[Termination "MikaelyanArman won by resignation"]

1. d4 {[%clk 0:02:50.9]} 1... d5 {[%clk 0:02:59.4]} 2. Nf3 {[%clk 0:02:48.9]}
2... Nf6 {[%clk 0:02:59.3]} 3. c4 {[%clk 0:02:49]} 3... c6 {[%clk 0:02:59.5]} 4.
Nc3 {[%clk 0:02:46.3]} 4... dxc4 {[%clk 0:02:58.4]} 5. a4 {[%clk 0:02:45.3]}
5... Bf5 {[%clk 0:02:58.6]} 6. e3 {[%clk 0:02:44.8]} 6... e6 {[%clk 0:02:57.5]}
7. Bxc4 {[%clk 0:02:45.2]} 7... Bb4 {[%clk 0:02:57.7]} 8. O-O {[%clk 0:02:45.7]}
8... Nbd7 {[%clk 0:02:56.4]} 9. Qe2 {[%clk 0:02:45.5]} 9... Bg4 {[%clk
0:02:54.6]} 10. h3 {[%clk 0:02:42.8]} 10... Bxf3 {[%clk 0:02:54.5]} 11. Qxf3
{[%clk 0:02:42.6]} 11... O-O {[%clk 0:02:55.4]} 12. Rd1 {[%clk 0:02:37]} 12...
Rc8 {[%clk 0:02:54.5]} 13. Bd2 {[%clk 0:02:32.8]} 13... e5 {[%clk 0:02:49.8]}
14. Qg3 {[%clk 0:01:44.8]} 14... Bxc3 {[%clk 0:02:33]} 15. Bxc3 {[%clk
0:01:42.4]} 15... Ne4 {[%clk 0:02:32.2]} 16. Qf3 {[%clk 0:01:42.4]} 16... Nxc3
{[%clk 0:02:31.2]} 17. bxc3 {[%clk 0:01:43.3]} 17... Qe7 {[%clk 0:02:29.8]} 18.
Rab1 {[%clk 0:01:41.6]} 18... b6 {[%clk 0:02:25.9]} 19. Bd3 {[%clk 0:01:28]}
19... Rfe8 {[%clk 0:01:42.7]} 20. Bf5 {[%clk 0:01:21.9]} 20... g6 {[%clk
0:01:17.3]} 21. Bxd7 {[%clk 0:01:20.2]} 21... Qxd7 {[%clk 0:01:17.8]} 22. dxe5
{[%clk 0:01:20.7]} 22... Qc7 {[%clk 0:01:17.6]} 23. Rd6 {[%clk 0:01:17]} 23...
Rxe5 {[%clk 0:01:13.1]} 24. Rbd1 {[%clk 0:01:16.8]} 24... Re7 {[%clk 0:01:06.4]}
25. h4 {[%clk 0:01:16.9]} 25... h5 {[%clk 0:01:05.5]} 26. Qf6 {[%clk 0:01:15.5]}
26... c5 {[%clk 0:00:55.6]} 27. R1d5 {[%clk 0:01:11]} 27... Rce8 {[%clk
0:00:53.1]} 28. Qg5 {[%clk 0:00:34.6]} 28... Re6 {[%clk 0:00:44.3]} 29. Rd7
{[%clk 0:00:26.3]} 29... Qc6 {[%clk 0:00:44]} 30. Rxa7 {[%clk 0:00:20.8]} 30...
R6e7 {[%clk 0:00:36.2]} 31. Rxe7 {[%clk 0:00:19.4]} 31... Rxe7 {[%clk
0:00:37.1]} 32. c4 {[%clk 0:00:15]} 32... Re8 {[%clk 0:00:31.8]} 33. g3 {[%clk
0:00:10.1]} 33... Qxa4 {[%clk 0:00:31.2]} 34. Qf4 {[%clk 0:00:07.2]} 34... Qc6
{[%clk 0:00:17.3]} 35. Rd6 {[%clk 0:00:07.5]} 35... Qc8 {[%clk 0:00:15.4]} 36.
Rxb6 {[%clk 0:00:06.6]} 36... Rd8 {[%clk 0:00:15.3]} 37. Qf3 {[%clk 0:00:05.5]}
37... Qd7 {[%clk 0:00:13.7]} 38. Rb7 {[%clk 0:00:05.7]} 38... Qe6 {[%clk
0:00:14.1]} 39. Qf4 {[%clk 0:00:04.2]} 39... Rd1+ {[%clk 0:00:12.2]} 40. Kh2
{[%clk 0:00:04.6]} 40... Rd8 {[%clk 0:00:11.2]} 41. Qc7 {[%clk 0:00:03.7]} 41...
Rd2 {[%clk 0:00:10.8]} 42. Rb8+ {[%clk 0:00:03.2]} 42... Kh7 {[%clk 0:00:10.2]}
43. Qf4 {[%clk 0:00:03.6]} 43... Qf5 {[%clk 0:00:08.2]} 44. Qxf5 {[%clk
0:00:03.6]} 44... gxf5 {[%clk 0:00:09.1]} 45. Kg2 {[%clk 0:00:03.8]} 45... Rc2
{[%clk 0:00:09.6]} 46. Rf8 {[%clk 0:00:02.7]} 46... Kg7 {[%clk 0:00:09.7]} 47.
Rc8 {[%clk 0:00:03.2]} 47... Rxc4 {[%clk 0:00:10.2]} 48. Kf3 {[%clk 0:00:04.1]}
48... Rc2 {[%clk 0:00:10.2]} 49. Rc6 {[%clk 0:00:04]} 49... c4 {[%clk
0:00:09.5]} 50. Kg2 {[%clk 0:00:03.9]} 50... c3 {[%clk 0:00:08.3]} 51. Kf3
{[%clk 0:00:04.8]} 51... f6 {[%clk 0:00:07.9]} 52. Rc7+ {[%clk 0:00:04.8]} 52...
Kg6 {[%clk 0:00:08.3]} 53. Rc5 {[%clk 0:00:05.7]} 53... Rc1 {[%clk 0:00:07.6]}
54. Kf4 {[%clk 0:00:06.1]} 54... Rc2 {[%clk 0:00:07.5]} 55. f3 {[%clk
0:00:05.9]} 55... Rd2 {[%clk 0:00:04.1]} 56. Rxc3 {[%clk 0:00:05.8]} 56... Rf2
{[%clk 0:00:03.3]} 57. Rc5 {[%clk 0:00:05.4]} 57... Rf1 {[%clk 0:00:04.2]} 58.
Rd5 {[%clk 0:00:04.9]} 58... Rf2 {[%clk 0:00:04.3]} 59. Rb5 {[%clk 0:00:04.9]}
59... Rf1 {[%clk 0:00:04.4]} 60. Rxf5 {[%clk 0:00:04.3]} 60... Rxf3+ {[%clk
0:00:04.3]} 61. Kxf3 {[%clk 0:00:05.2]} 61... Kxf5 {[%clk 0:00:05]} 62. e4+
{[%clk 0:00:05.6]} 62... Ke5 {[%clk 0:00:05.7]} 63. Ke3 {[%clk 0:00:03.9]} 63...
f5 {[%clk 0:00:05.8]} 64. exf5 {[%clk 0:00:03.1]} 64... Kxf5 {[%clk 0:00:06.7]}
65. Kf2 {[%clk 0:00:04]} 65... Kg4 {[%clk 0:00:06.5]} 66. Kg2 {[%clk 0:00:04.4]}
66... Kf5 {[%clk 0:00:06.7]} 67. Kf3 {[%clk 0:00:05.3]} 67... Kf6 {[%clk
0:00:05]} 68. Kf4 {[%clk 0:00:05.4]} 68... Kg6 {[%clk 0:00:05]} 69. Ke5 {[%clk
0:00:05.8]} 69... Kg7 {[%clk 0:00:03.5]} 70. Kf5 {[%clk 0:00:06.2]} 70... Kh6
{[%clk 0:00:03.7]} 71. Kf6 {[%clk 0:00:06.6]} 71... Kh7 {[%clk 0:00:04.6]} 72.
Kg5 {[%clk 0:00:07.5]} 1-0